fUSD/lending_fUSD_20250930
["ID","MTS","AMOUNT","RATE_DAILY","PERIOD"]
[388607229,1759251042864,-9211.34798985,0.00018674,2]
[388607230,1759251042876,-419.3709,0.00018686,2]
[388607231,1759251042886,-2359.40570006,0.00018726,2]
[388607232,1759251042896,-9552.16786547,0.00018729,2]
[388607234,1759251042907,-3276.67395321,0.00018765,2]
[388607235,1759251042916,-9905.5980765,0.00018784,2]
[388607236,1759251042926,-203.836641,0.000188,2]
[388607237,1759251042936,-931.3042327,0.00018839,2]
[388607238,1759251042946,-150.36353587,0.00018884,2]
[388607239,1759251042956,-151.32362036,0.00018884,2]
[388607240,1759251042965,-150.0,0.00018884,2]
[388607241,1759251042975,-500.0,0.00018884,2]
[388607242,1759251042987,-500.0,0.00018884,2]
[388607243,1759251042998,-494.0,0.00018884,2]
[388607244,1759251043011,-500.0,0.00018884,2]
[388607246,1759251043022,-2070.0,0.00018884,2]
[388607247,1759251043031,-500.0,0.00018884,2]
[388607248,1759251043042,-150.0,0.00018884,2]
[388607249,1759251043052,-1178.0,0.00018884,2]
[388607250,1759251043062,-500.0,0.00018884,2]
[388607251,1759251043073,-500.0,0.00018884,2]
[388607252,1759251043083,-254.80463876,0.00018884,2]
[388607253,1759251043094,-150.0,0.00018884,2]
[388607254,1759251043104,-150.0,0.00018884,2]
[388607255,1759251043115,-150.0,0.00018884,2]
[388607256,1759251043125,-500.0,0.00018884,2]
[388607257,1759251043135,-500.0,0.00018884,2]
[388607258,1759251043145,-250.0,0.00018884,2]
[388607259,1759251043155,-500.0,0.00018884,2]
[388607260,1759251043165,-500.0,0.00018884,2]
[388607261,1759251043175,-1745.24,0.00018895,2]
[388607262,1759251043185,-592.0,0.00018927,2]
[388607263,1759251043197,-592.0,0.00018933,2]
[388607264,1759251043210,-273.54283156,0.00018979,2]
[388607265,1759251043221,-6620.0,0.00019,2]
[388607266,1759251043231,-6620.0,0.00019,2]
[388607267,1759251043243,-6620.0,0.00019,2]
[388607268,1759251043252,-1000.0,0.00019,2]
[388607269,1759251043262,-1000.0,0.00019,2]
[388607270,1759251043273,-1000.0,0.00019,2]
[388607273,1759251043283,-1000.0,0.00019,2]
[388607275,1759251043292,-1000.0,0.00019,2]
[388607278,1759251043302,-1000.0,0.00019,2]
[388607280,1759251043311,-1007.0,0.00019,2]
[388607281,1759251043321,-1000.0,0.00019,3]
[388607282,1759251043331,-1000.0,0.00019,3]
[388607283,1759251043340,-1000.0,0.00019,3]
[388607284,1759251043350,-1000.0,0.00019,3]
[388607285,1759251043360,-1000.0,0.00019,3]
[388607286,1759251043369,-1000.0,0.00019,4]
[388607287,1759251043380,-1000.0,0.00019,2]
[388607288,1759251043391,-1002.0,0.00019,3]
[388607289,1759251043401,-9000.0,0.00019002,2]
[388607290,1759251043411,-151.0,0.00019002,2]
[388607291,1759251043425,-3276.67395321,0.0001901,2]
[388607292,1759251043435,-592.0,0.00019013,2]
[388607293,1759251043447,-592.0,0.00019015,2]
[388607294,1759251043458,-6444.74543933,0.00019077,9]
[388607295,1759251043468,-1000.0,0.00019077,2]
[388607296,1759251043479,-160.58327587,0.00019078,2]
[388607297,1759251043489,-774.42424252,0.00019078,2]
[388607298,1759251043553,-7027.41275748,0.00019078,2]
[388607299,1759251043563,-109706.97072832,0.00019078,2]
[388607300,1759251043579,-410.80245046,0.00019078,2]
[388607301,1759251043593,-7546.28786733,0.00019078,2]
[388607302,1759251043604,-18019.72977913,0.00019078,2]
[388607303,1759251043616,-676.9005174,0.00019078,2]
[388607304,1759251043629,-747.00265292,0.00019078,2]
[388607305,1759251045619,-54936.47920444,0.00019078,2]
[388607306,1759251045630,-5000.0,0.00019078,2]
[388607307,1759251045640,-592.0,0.00019079,2]
[388607308,1759251045649,-592.0,0.00019086,2]
[388607309,1759251045659,-592.0,0.0001909,2]
[388607310,1759251045668,-592.0,0.000191,2]
[388607311,1759251045677,-222.37,0.00019133,2]
[388607312,1759251045687,-2359.40569977,0.00019156,2]
[388607313,1759251045696,-208.97639796,0.00019158,2]
[388607314,1759251045705,-552.51845372,0.00019158,2]
[388607315,1759251045715,-500.0,0.00019158,2]
[388607316,1759251045725,-494.0,0.00019158,2]
[388607317,1759251045736,-500.0,0.00019158,2]
[388607318,1759251045745,-2070.0,0.00019158,2]
[388607319,1759251045755,-151.83344632,0.00019158,2]
[388607320,1759251045764,-150.0,0.00019158,2]
[388607321,1759251045774,-1178.0,0.00019158,2]
[388607322,1759251045783,-415.22667587,0.00019158,2]
[388607323,1759251045793,-500.0,0.00019158,2]
[388607324,1759251045802,-150.60953712,0.00019158,2]
[388607325,1759251045811,-150.0,0.00019158,2]
[388607326,1759251045821,-151.02496615,0.00019158,2]
[388607327,1759251045830,-601.97366281,0.00019158,2]
[388607328,1759251045840,-500.0,0.00019158,2]
[388607330,1759251045849,-153.13753536,0.00019158,2]
[388607332,1759251045858,-200.0,0.00019158,2]
[388607333,1759251045868,-1745.24,0.00019169,2]
[388607335,1759251045877,-150.0,0.00019177,2]
[388607336,1759251045887,-978.29,0.00019178,2]
[388607337,1759251045896,-500.0,0.00019178,2]
[388607338,1759251045905,-527.77,0.00019178,2]
[388607339,1759251045915,-505.78,0.00019178,2]
[388607340,1759251045925,-500.0,0.00019178,2]
[388607341,1759251045934,-500.0,0.00019178,2]
[388607342,1759251045944,-500.0,0.00019178,2]
[388607343,1759251045953,-708.23,0.00019178,2]
[388607344,1759251045963,-500.0,0.00019178,2]
[388607345,1759251045973,-500.0,0.00019178,2]
[388607346,1759251045982,-645.92,0.00019178,2]
[388607347,1759251045991,-645.92,0.00019178,2]
[388607348,1759251046000,-500.0,0.00019178,2]
[388607349,1759251046011,-500.0,0.00019178,2]
[388607350,1759251046021,-500.0,0.00019178,2]
[388607351,1759251046030,-2618.22,0.00019178,2]
[388607352,1759251046039,-2509.13,0.00019178,2]
[388607353,1759251046048,-500.0,0.00019178,2]
[388607354,1759251046058,-500.0,0.00019178,2]
[388607356,1759251046067,-300.0,0.00019178,2]
[388607357,1759251046076,-473.84094752,0.00019178,2]
[388607358,1759251046086,-500.0,0.00019178,2]
[388607359,1759251046095,-500.0,0.00019178,2]
[388607360,1759251046103,-500.0,0.00019178,2]
[388607361,1759251046112,-303.3059824,0.00019178,2]
[388607362,1759251046122,-500.0,0.00019178,2]
[388607363,1759251046131,-1161.35,0.00019178,2]
[388607364,1759251046141,-500.0,0.00019178,2]
[388607365,1759251046151,-500.0,0.00019178,2]
[388607366,1759251046161,-500.0,0.00019178,2]
[388607367,1759251046170,-284.04692083,0.00019178,2]
[388607368,1759251046179,-500.0,0.00019178,2]
[388607369,1759251046188,-500.0,0.00019178,2]
[388607370,1759251046198,-1847.83,0.00019178,2]
[388607371,1759251046211,-500.0,0.00019178,2]
[388607372,1759251046220,-500.0,0.00019178,2]
[388607373,1759251046229,-1493.67,0.00019178,2]
[388607374,1759251046238,-344.07706932,0.00019178,2]
[388607375,1759251046249,-500.0,0.00019178,2]
[388607376,1759251046259,-500.0,0.00019178,2]
[388607377,1759251046271,-500.0,0.00019178,2]
[388607378,1759251046281,-500.0,0.00019178,2]
[388607379,1759251046290,-881.67,0.00019178,2]
[388607380,1759251046299,-517.44,0.00019178,2]
[388607381,1759251046308,-500.0,0.00019178,2]
[388607382,1759251046318,-500.0,0.00019178,2]
[388607383,1759251046327,-502.57831666,0.00019178,2]
[388607384,1759251046336,-500.0,0.00019178,2]
[388607385,1759251046345,-500.0,0.00019178,2]
[388607386,1759251046355,-500.0,0.00019178,2]
[388607387,1759251046364,-500.0,0.00019178,2]
[388607388,1759251046373,-500.0,0.00019178,2]
[388607389,1759251046382,-456.33422728,0.00019178,2]
[388607390,1759251046391,-500.0,0.00019178,2]
[388607391,1759251046402,-500.0,0.00019178,2]
[388607392,1759251046411,-500.0,0.00019178,2]
[388607393,1759251046422,-500.0,0.00019178,2]
[388607394,1759251046431,-500.0,0.00019178,2]
[388607395,1759251046442,-181.43091277,0.00019178,2]
[388607396,1759251046451,-500.0,0.00019178,2]
[388607397,1759251046460,-601.39,0.00019178,2]
[388607398,1759251046470,-500.0,0.00019178,2]
[388607399,1759251046479,-500.0,0.00019178,2]
[388607400,1759251046489,-500.0,0.00019178,2]
[388607401,1759251046499,-500.0,0.00019178,2]
[388607402,1759251046508,-500.0,0.00019178,2]
[388607403,1759251046517,-500.0,0.00019178,2]
[388607404,1759251046527,-898.59,0.00019178,2]
[388607405,1759251046536,-287.12270629,0.00019178,2]
[388607406,1759251046545,-297.86236926,0.00019178,2]
[388607407,1759251046555,-280.18480035,0.00019178,2]
[388607408,1759251046564,-500.0,0.00019178,2]
[388607409,1759251046573,-721.72,0.00019178,2]
[388607410,1759251046582,-511.62,0.00019178,2]
[388607411,1759251046591,-500.0,0.00019178,2]
[388607412,1759251046601,-342.23480693,0.00019178,2]
[388607413,1759251046610,-500.0,0.00019178,2]
[388607414,1759251046619,-500.0,0.00019178,2]
[388607415,1759251046628,-500.0,0.00019178,2]
[388607416,1759251046637,-500.0,0.00019178,2]
[388607417,1759251046646,-500.0,0.00019178,2]
[388607418,1759251046655,-500.0,0.00019178,2]
[388607419,1759251046663,-500.0,0.00019178,2]
[388607420,1759251046672,-500.0,0.00019178,2]
[388607421,1759251046682,-500.0,0.00019178,2]
[388607422,1759251046691,-500.0,0.00019178,2]
[388607423,1759251046700,-500.0,0.00019178,2]
[388607424,1759251046709,-500.0,0.00019178,2]
[388607425,1759251046718,-604.96,0.00019178,2]
[388607426,1759251046727,-500.0,0.00019178,2]
[388607427,1759251046736,-500.0,0.00019178,2]
[388607428,1759251046747,-500.0,0.00019178,2]
[388607429,1759251046758,-2553.27,0.00019178,2]
[388607430,1759251046767,-500.0,0.00019178,2]
[388607431,1759251046775,-500.0,0.00019178,2]
[388607432,1759251046784,-513.94,0.00019178,2]
[388607433,1759251046793,-1984.29,0.00019178,2]
[388607434,1759251046802,-1560.11,0.00019178,2]
[388607435,1759251046811,-500.0,0.00019178,2]
[388607436,1759251046821,-500.0,0.00019178,2]
[388607437,1759251046831,-500.0,0.00019178,2]
[388607438,1759251046841,-292.14691457,0.00019178,2]
[388607439,1759251046852,-504.99,0.00019178,2]
[388607440,1759251046862,-500.0,0.00019178,2]
[388607441,1759251046871,-490.10047725,0.00019178,2]
[388607442,1759251046880,-500.0,0.00019178,2]
[388607443,1759251046889,-500.0,0.00019178,2]
[388607444,1759251046898,-500.0,0.00019178,2]
[388607445,1759251046907,-500.0,0.00019178,2]
[388607446,1759251046917,-1322.97,0.00019178,2]
[388607447,1759251046927,-1205.42,0.00019178,2]
[388607448,1759251046937,-500.0,0.00019178,2]
[388607449,1759251046946,-500.0,0.00019178,2]
[388607450,1759251046955,-500.0,0.00019178,2]
[388607451,1759251046964,-1233.77,0.00019178,2]
[388607452,1759251046973,-500.0,0.00019178,2]
[388607453,1759251046983,-567.73,0.00019178,2]
[388607454,1759251046992,-500.0,0.00019178,2]
[388607455,1759251047001,-500.0,0.00019178,2]
[388607456,1759251047011,-705.75,0.00019178,2]
[388607457,1759251047021,-500.0,0.00019178,2]
[388607458,1759251047030,-755.63,0.00019178,2]
[388607459,1759251047040,-500.0,0.00019178,2]
[388607460,1759251047049,-500.0,0.00019178,2]
[388607461,1759251047058,-500.0,0.00019178,2]
[388607462,1759251047067,-500.0,0.00019178,2]
[388607463,1759251047076,-500.0,0.00019178,2]
[388607464,1759251047085,-500.0,0.00019178,2]
[388607465,1759251047095,-500.0,0.00019178,2]
[388607466,1759251047104,-500.0,0.00019178,2]
[388607467,1759251047113,-500.0,0.00019178,2]
[388607468,1759251047124,-500.0,0.00019178,2]
[388607469,1759251047133,-500.0,0.00019178,2]
[388607470,1759251047143,-500.0,0.00019178,2]
[388607471,1759251047155,-500.0,0.00019178,2]
[388607472,1759251047166,-500.0,0.00019178,2]
[388607473,1759251047176,-500.0,0.00019178,2]
[388607474,1759251047186,-500.0,0.00019178,2]
[388607475,1759251047197,-1212.03,0.00019178,2]
[388607476,1759251047216,-500.0,0.00019178,2]
[388607477,1759251047231,-594.47,0.00019178,2]
[388607478,1759251047244,-666.26,0.00019178,2]
[388607479,1759251047255,-500.0,0.00019178,2]
[388607480,1759251047264,-500.0,0.00019178,2]
[388607481,1759251047275,-500.0,0.00019178,2]
[388607482,1759251047286,-500.0,0.00019178,2]
[388607483,1759251047296,-574.97,0.00019178,2]
[388607484,1759251047305,-500.0,0.00019178,2]
[388607485,1759251047315,-500.0,0.00019178,2]
[388607486,1759251047326,-500.0,0.00019178,2]
[388607487,1759251047336,-1161.27,0.00019178,2]
[388607488,1759251047347,-500.0,0.00019178,2]
[388607489,1759251047356,-500.0,0.00019178,2]
[388607490,1759251047366,-500.0,0.00019178,2]
[388607491,1759251047376,-500.0,0.00019178,2]
[388607492,1759251047386,-664.98,0.00019178,2]
[388607493,1759251047397,-500.0,0.00019178,2]
[388607494,1759251047407,-209.76999716,0.00019178,2]
[388607495,1759251047416,-500.0,0.00019178,2]
[388607496,1759251047427,-2168.5,0.00019178,2]
[388607497,1759251047438,-1285.24,0.00019178,2]
[388607498,1759251047447,-500.0,0.00019178,2]
[388607499,1759251047458,-500.0,0.00019178,2]
[388607500,1759251047468,-500.0,0.00019178,2]
[388607501,1759251047478,-500.0,0.00019178,2]
[388607502,1759251047488,-500.0,0.00019178,2]
[388607503,1759251047497,-500.0,0.00019178,2]
[388607504,1759251047507,-500.0,0.00019178,2]
[388607505,1759251047517,-500.0,0.00019178,2]
[388607506,1759251047527,-500.0,0.00019178,2]
[388607507,1759251047536,-677.4,0.00019178,2]
[388607508,1759251047546,-500.0,0.00019178,2]
[388607509,1759251047555,-1671.05,0.00019178,2]
[388607510,1759251047568,-1312.17,0.00019178,2]
[388607511,1759251047578,-500.0,0.00019178,2]
[388607512,1759251047588,-500.0,0.00019178,2]
[388607513,1759251047598,-500.0,0.00019178,2]
[388607514,1759251047607,-400.25316657,0.00019178,2]
[388607515,1759251047617,-578.42,0.00019178,2]
[388607516,1759251047627,-2200.27,0.00019178,2]
[388607517,1759251047636,-500.0,0.00019178,2]
[388607518,1759251047646,-500.0,0.00019178,2]
[388607519,1759251047655,-748.11,0.00019178,2]
[388607520,1759251047665,-849.42,0.00019178,2]
[388607521,1759251047674,-500.0,0.00019178,2]
[388607522,1759251047683,-500.0,0.00019178,2]
[388607523,1759251047693,-718.49,0.00019178,2]
[388607524,1759251047703,-500.0,0.00019178,2]
[388607525,1759251047712,-655.43,0.00019178,2]
[388607526,1759251047722,-1188.14,0.00019178,2]
[388607527,1759251047732,-555.26,0.00019178,2]
[388607528,1759251047742,-500.0,0.00019178,2]
[388607529,1759251047751,-500.0,0.00019178,2]
[388607530,1759251047761,-500.0,0.00019178,2]
[388607531,1759251047771,-1069.66,0.00019178,2]
[388607532,1759251047781,-500.0,0.00019178,2]
[388607533,1759251047791,-512.69,0.00019178,2]
[388607534,1759251047801,-500.0,0.00019178,2]
[388607535,1759251047811,-500.0,0.00019178,2]
[388607536,1759251047820,-500.0,0.00019178,2]
[388607537,1759251047829,-500.0,0.00019178,2]
[388607538,1759251047839,-500.0,0.00019178,2]
[388607539,1759251047848,-500.0,0.00019178,2]
[388607540,1759251047860,-500.0,0.00019178,2]
[388607541,1759251047870,-500.0,0.00019178,2]
[388607542,1759251047880,-500.0,0.00019178,2]
[388607543,1759251047890,-500.0,0.00019178,2]
[388607544,1759251047900,-500.0,0.00019178,2]
[388607545,1759251047910,-500.0,0.00019178,2]
[388607546,1759251047921,-500.0,0.00019178,2]
[388607547,1759251047931,-500.0,0.00019178,2]
[388607548,1759251047942,-500.0,0.00019178,2]
[388607549,1759251047952,-500.0,0.00019178,2]
[388607550,1759251047963,-500.0,0.00019178,2]
[388607551,1759251047974,-500.0,0.00019178,2]
[388607552,1759251047984,-500.0,0.00019178,2]
[388607553,1759251047994,-500.0,0.00019178,2]
[388607554,1759251048004,-500.0,0.00019178,2]
[388607555,1759251048015,-500.0,0.00019178,2]
[388607556,1759251048024,-500.0,0.00019178,2]
[388607557,1759251048034,-500.0,0.00019178,2]
[388607558,1759251048044,-190.7262938,0.00019178,2]
[388607559,1759251048053,-500.0,0.00019178,2]
[388607560,1759251048063,-500.0,0.00019178,2]
[388607561,1759251048073,-703.38,0.00019178,2]
[388607562,1759251048082,-500.0,0.00019178,2]
[388607563,1759251048092,-500.0,0.00019178,2]
[388607564,1759251048102,-500.0,0.00019178,2]
[388607565,1759251048112,-500.0,0.00019178,2]
[388607566,1759251048122,-500.0,0.00019178,2]
[388607567,1759251048131,-500.0,0.00019178,2]
[388607568,1759251048142,-500.0,0.00019178,2]
[388607569,1759251048152,-500.0,0.00019178,2]
[388607570,1759251048163,-1071.55,0.00019178,2]
[388607571,1759251048173,-500.0,0.00019178,2]
[388607572,1759251048183,-500.0,0.00019178,2]
[388607573,1759251048193,-500.0,0.00019178,2]
[388607574,1759251048212,-500.0,0.00019178,2]
[388607575,1759251048223,-500.0,0.00019178,2]
[388607576,1759251048233,-500.0,0.00019178,2]
[388607577,1759251048244,-500.0,0.00019178,2]
[388607578,1759251048256,-624.09,0.00019178,2]
[388607579,1759251048267,-500.0,0.00019178,2]
[388607580,1759251048278,-500.0,0.00019178,2]
[388607581,1759251048288,-1433.0,0.00019178,2]
[388607582,1759251048297,-1306.15,0.00019178,2]
[388607583,1759251048306,-500.0,0.00019178,2]
[388607584,1759251048317,-507.95,0.00019178,2]
[388607585,1759251048326,-500.0,0.00019178,2]
[388607586,1759251048337,-500.0,0.00019178,2]
[388607587,1759251048348,-500.0,0.00019178,2]
[388607588,1759251048358,-691.96,0.00019178,2]
[388607589,1759251048369,-500.0,0.00019178,2]
[388607590,1759251048378,-500.0,0.00019178,2]
[388607591,1759251048388,-500.0,0.00019178,2]
[388607592,1759251048398,-500.0,0.00019178,2]
[388607593,1759251048410,-500.0,0.00019178,2]
[388607594,1759251048420,-503.27,0.00019178,2]
[388607595,1759251048430,-2426.67,0.00019178,2]
[388607596,1759251048440,-500.0,0.00019178,2]
[388607597,1759251048449,-500.0,0.00019178,2]
[388607598,1759251048459,-500.0,0.00019178,2]
[388607599,1759251048470,-500.0,0.00019178,2]
[388607600,1759251048480,-897.86,0.00019178,2]
[388607601,1759251048490,-1606.77,0.00019178,2]
[388607602,1759251048499,-1187.73,0.00019178,2]
[388607603,1759251048509,-500.0,0.00019178,2]
[388607604,1759251048519,-500.0,0.00019178,2]
[388607605,1759251048529,-500.0,0.00019178,2]
[388607606,1759251048538,-940.56,0.00019178,2]
[388607607,1759251048548,-849.71,0.00019178,2]
[388607608,1759251048558,-2686.3,0.00019178,2]
[388607609,1759251048569,-1000.0,0.00019178,2]
[388607610,1759251048578,-500.0,0.00019178,2]
[388607611,1759251048588,-151.0,0.00019178,2]
[388607612,1759251048598,-1847.515,0.00019203,2]
[388607613,1759251048608,-153.0,0.00019212,2]
[388607614,1759251048618,-153.0,0.00019212,2]
[388607615,1759251048629,-153.0,0.00019212,2]
[388607616,1759251048640,-153.0,0.00019212,2]
[388607617,1759251048650,-153.0,0.00019212,2]
[388607618,1759251048661,-153.0,0.00019212,2]
[388607619,1759251048983,-153.0,0.00019212,2]
[388607620,1759251048995,-153.0,0.00019212,2]
[388607621,1759251049004,-153.0,0.00019212,2]
[388607622,1759251049013,-153.0,0.00019212,2]
[388607623,1759251049023,-153.0,0.00019212,2]
[388607624,1759251049031,-153.0,0.00019212,2]
[388607625,1759251049040,-153.0,0.00019212,2]
[388607626,1759251049052,-153.0,0.00019212,2]
[388607627,1759251049063,-153.0,0.00019212,2]
[388607628,1759251049072,-153.0,0.00019212,2]
[388607629,1759251049082,-153.0,0.00019212,2]
[388607630,1759251049091,-153.0,0.00019212,2]
[388607631,1759251049101,-153.0,0.00019212,2]
[388607632,1759251049110,-153.0,0.00019212,2]
[388607633,1759251049120,-153.0,0.00019212,2]
[388607634,1759251049129,-153.0,0.00019212,2]
[388607635,1759251049138,-153.0,0.00019212,2]
[388607636,1759251049148,-153.0,0.00019212,2]
[388607637,1759251049158,-153.0,0.00019212,2]
[388607638,1759251049167,-153.0,0.00019212,2]
[388607639,1759251049176,-153.0,0.00019212,2]
[388607640,1759251049186,-153.0,0.00019212,2]
[388607641,1759251049195,-153.0,0.00019212,2]
[388607642,1759251049209,-153.0,0.00019212,2]
[388607643,1759251049218,-592.0,0.00019215,2]
[388607644,1759251049228,-3276.67395321,0.00019254,2]
[388607645,1759251049238,-592.0,0.0001929,2]
[388607646,1759251049250,-592.0,0.00019298,2]
[388607647,1759251049259,-6620.0,0.000193,2]
[388607648,1759251049269,-1064.91666225,0.00019399,2]
[388607649,1759251049280,-572.56,0.00019415,2]
[388607650,1759251049290,-500.0,0.00019432,2]
[388607651,1759251049299,-494.0,0.00019432,2]
[388607652,1759251049308,-301.87235773,0.00019432,2]
[388607653,1759251049318,-2070.0,0.00019432,2]
[388607654,1759251049329,-150.0,0.00019432,2]
[388607655,1759251049338,-1178.0,0.00019432,2]
[388607656,1759251049347,-500.0,0.00019432,2]
[388607657,1759251049357,-150.0,0.00019432,2]
[388607658,1759251049367,-450.0,0.00019432,2]
[388607659,1759251049376,-592.0,0.00019437,2]
[388607660,1759251049386,-1745.24,0.00019443,2]
[388607661,1759251049396,-500.0,0.00019451,2]
[388607662,1759251049405,-500.0,0.00019451,2]
[388607663,1759251049415,-1000.0,0.00019451,2]
[388607664,1759251049425,-500.0,0.00019452,2]
[388607665,1759251049435,-978.29,0.00019452,2]
[388607666,1759251049444,-500.0,0.00019452,2]
[388607667,1759251049453,-527.77,0.00019452,2]
[388607668,1759251049463,-505.78,0.00019452,2]
[388607669,1759251049472,-208675.0313152,0.00019452,2]
[388607670,1759251049482,-500.0,0.00019452,2]
[388607671,1759251049491,-772.62,0.00019452,2]
[388607672,1759251049501,-500.0,0.00019452,2]
[388607673,1759251049511,-645.92,0.00019452,2]
[388607674,1759251049520,-645.92,0.00019452,2]
[388607675,1759251049530,-500.0,0.00019452,2]
[388607676,1759251049539,-2618.22,0.00019452,2]
[388607677,1759251049548,-2509.13,0.00019452,2]
[388607678,1759251049557,-300.0,0.00019452,2]
[388607679,1759251049566,-500.0,0.00019452,2]
[388607680,1759251049576,-500.0,0.00019452,2]
[388607681,1759251049585,-500.0,0.00019452,2]
[388607682,1759251049594,-500.0,0.00019452,2]
[388607683,1759251049604,-1161.35,0.00019452,2]
[388607684,1759251049613,-500.0,0.00019452,2]
[388607685,1759251049623,-500.0,0.00019452,2]
[388607686,1759251049632,-500.0,0.00019452,2]
[388607687,1759251049641,-1847.83,0.00019452,2]
[388607688,1759251049651,-500.0,0.00019452,2]
[388607689,1759251049660,-500.0,0.00019452,2]
[388607690,1759251049670,-1493.67,0.00019452,2]
[388607691,1759251049680,-214.30875357,0.00019452,2]
[388607692,1759251049689,-500.0,0.00019452,2]
[388607693,1759251049698,-500.0,0.00019452,2]
[388607694,1759251049707,-500.0,0.00019452,2]
[388607695,1759251049716,-881.67,0.00019452,2]
[388607696,1759251049725,-517.44,0.00019452,2]
[388607697,1759251049734,-500.0,0.00019452,2]
[388607698,1759251049743,-500.0,0.00019452,2]
[388607699,1759251049753,-500.0,0.00019452,2]
[388607700,1759251049762,-500.0,0.00019452,2]
[388607701,1759251049771,-500.0,0.00019452,2]
[388607702,1759251049780,-500.0,0.00019452,2]
[388607703,1759251049790,-500.0,0.00019452,2]
[388607704,1759251049799,-500.0,0.00019452,2]
[388607705,1759251049808,-500.0,0.00019452,2]
[388607706,1759251049817,-601.39,0.00019452,2]
[388607707,1759251049827,-500.0,0.00019452,2]
[388607708,1759251049836,-500.0,0.00019452,2]
[388607709,1759251049846,-500.0,0.00019452,2]
[388607710,1759251049855,-500.0,0.00019452,2]
[388607711,1759251049864,-898.59,0.00019452,2]
[388607712,1759251049874,-721.72,0.00019452,2]
[388607713,1759251049883,-511.62,0.00019452,2]
[388607714,1759251049892,-500.0,0.00019452,2]
[388607715,1759251049901,-500.0,0.00019452,2]
[388607716,1759251049910,-500.0,0.00019452,2]
[388607717,1759251049919,-500.0,0.00019452,2]
[388607718,1759251049928,-2553.27,0.00019452,2]
[388607719,1759251049937,-500.0,0.00019452,2]
[388607720,1759251049947,-500.0,0.00019452,2]
[388607721,1759251049955,-513.94,0.00019452,2]
[388607722,1759251049965,-1984.29,0.00019452,2]
[388607723,1759251049975,-1560.11,0.00019452,2]
[388607724,1759251049983,-500.0,0.00019452,2]
[388607725,1759251049992,-500.0,0.00019452,2]
[388607726,1759251050002,-500.0,0.00019452,2]
[388607727,1759251050011,-504.99,0.00019452,2]
[388607728,1759251050020,-500.0,0.00019452,2]
[388607729,1759251050029,-500.0,0.00019452,2]
[388607730,1759251050038,-500.0,0.00019452,2]
[388607731,1759251050047,-500.0,0.00019452,2]
[388607732,1759251050057,-1322.97,0.00019452,2]
[388607733,1759251050066,-500.0,0.00019452,2]
[388607734,1759251050076,-1205.42,0.00019452,2]
[388607735,1759251050085,-500.0,0.00019452,2]
[388607736,1759251050094,-500.0,0.00019452,2]
[388607737,1759251050103,-500.0,0.00019452,2]
[388607738,1759251050111,-1233.77,0.00019452,2]
[388607739,1759251050121,-500.0,0.00019452,2]
[388607740,1759251050130,-567.73,0.00019452,2]